[Event "British Championship 2024"]
[Site "Hull"]
[Date "2024.07.31"]
[Round "5.14"]
[White "Lutsko, Artem"]
[Black "Mirzoeva, Elmira"]
[Result "1-0"]
[Annotator "RC"]
[ECO "E52"]
[WhiteElo "2414"]
[BlackElo "2260"]
[PlyCount "117"]
[EventDate "2024.07.31"]
[EventCountry "GBR"]
[SourceTitle "playchess.com"]
[Source "ChessBase"]
[SourceQuality "1"]
[TimeControl "40/5400+30:1800+30"]

1. d4 {[%emt 0:00:01]} Nf6 {[%emt 0:00:26]} 2. c4 {[%emt 0:00:10]} e6 {[%emt 0:00:20]} 3. Nc3 {[%emt 0:00:52]} Bb4 {[%emt 0:00:27]} 4. e3 {[%emt 0:00:06]} O-O {[%emt 0:01:48]} 5. Bd3 {[%emt 0:00:05]} d5 {[%emt 0:01:09]} 6. Nf3 {[%emt 0:00:22]} b6 {[%emt 0:00:30]} 7. O-O {[%emt 0:05:15]} Bb7 {[%emt 0:00:28]} 8. cxd5 {[%emt 0:01:05]} exd5 {[%emt 0:00:23]} 9. a3 {[%emt 0:05:22]} Bd6 {[%emt 0:02:33]} 10. b4 {[%emt 0:05:09]} Nbd7 {[%emt 0:04:45]} 11. Bb2 {[%emt 0:00:04]} a6 {[%emt 0:05:03]} 12. Rc1 {[%emt 0:01:54]} Qe7 {[%emt 0:01:11]} 13. Ne2 {[%emt 0:09:49]} Ne4 {[%emt 0:06:41]} 14. Ng3 {[%emt 0:03:19]} f5 {[%emt 0:01:44]} 15. b5 {[%emt 0:13:42]} a5 {[%emt 0:20:44]} 16. a4 {[%emt 0:04:51]} f4 {[%emt 0:06:48]} 17. exf4 {[%emt 0:01:16]} Bxf4 {[%emt 0:03:17]} 18. Rc2 {[%emt 0:00:02]} Rae8 {[%emt 0:01:29]} 19. Re1 {[%emt 0:02:16]} Qb4 {[%emt 0:10:59]} 20. Rce2 {[%emt 0:04:46]} Ndf6 {[%emt 0:04:36]} 21. Qc2 {[%emt 0:05:03]} g6 {[%emt 0:10:07]} 22. Ne5 {[%emt 0:03:26]} Re7 {[%emt 0:08:51]} 23. Nxe4 {[%emt 0:09:50]} Nxe4 {[%emt 0:01:05]} 24. Nc6 {[%emt 0:02:04]} Bxc6 {[%emt 0:01:06]} 25. Qxc6 {[%emt 0:00:01]} Kh8 {[%emt 0:01:43]} 26. Qc2 {[%emt 0:12:30]} Rfe8 {[%emt 0:01:22]} 27. g3 {[%emt 0:00:21]} Bh6 {[%emt 0:02:36]} 28. Kg2 {[%emt 0:01:28]} Nf6 {[%emt 0:00:52]} 29. Rxe7 {[%emt 0:02:18]} Rxe7 {[%emt 0:00:01]} 30. Re5 {[%emt 0:01:22]} Bg7 {[%emt 0:01:03]} 31. Bc3 {[%emt 0:00:54]} Qa3 {[%emt 0:00:12]} 32. Bd2 {[%emt 0:02:27]} Qd6 {[%emt 0:01:03]} 33. Bf4 {[%emt 0:00:22]} Ne8 {[%emt 0:00:43]} 34. Rxe7 {[%emt 0:01:50]} Qxe7 {[%emt 0:00:01]} 35. Qc6 {[%emt 0:00:02]} Bxd4 {[%emt 0:00:40]} 36. Qxd5 {[%emt 0:00:01]} Bg7 {[%emt 0:01:03]} 37. h4 {[%emt 0:00:32]} Nd6 {[%emt 0:00:33]} 38. h5 {[%emt 0:02:08]} gxh5 {[%emt 0:00:02]} 39. Qxh5 {[%emt 0:00:01]} Bf6 {[%emt 0:00:08]} 40. g4 {[%emt 0:02:12]} Bd4 {[%emt 0:01:21]} 41. g5 {[%emt 0:31:11]} Qg7 {[%emt 0:14:40]} 42. g6 {[%emt 0:00:00]} Nf7 {[%emt 0:00:56]} 43. Qxh7+ {[%emt 0:00:00]} Qxh7 {[%emt 0:00:06]} 44. gxh7 {[%emt 0:00:00]} Be5 {[%emt 0:04:43]} 45. Bxe5+ {[%emt 0:00:00]} Nxe5 {[%emt 0:00:02]} 46. Be4 {[%emt 0:00:00]} Kg7 {[%emt 0:01:20]} 47. Kg3 {[%emt 0:00:00]} Nf7 {[%emt 0:00:05]} 48. Kf4 {[%emt 0:00:00]} Kf6 {[%emt 0:00:02]} 49. Ke3 {[%emt 0:00:00]} Ke5 {[%emt 0:00:25]} 50. f4+ {[%emt 0:00:00]} Kd6 {[%emt 0:00:02]} 51. Kd4 {[%emt 0:00:00]} Nh8 {[%emt 0:00:06]} 52. f5 {[%emt 0:00:00]} Nf7 {[%emt 0:00:06]} 53. Bd5 {[%emt 0:00:00]} Nh8 {[%emt 0:00:13]} 54. Ba2 {[%emt 0:00:00]} c6 {[%emt 0:00:32]} 55. bxc6 {[%emt 0:00:00]} Kxc6 {[%emt 0:00:02]} 56. Ke5 {[%emt 0:00:00]} Kd7 {[%emt 0:00:24]} 57. Kf6 {[%emt 0:00:00]} Ke8 {[%emt 0:00:12]} 58. Kg7 {[%emt 0:00:00]} Ke7 {[%emt 0:00:09]} 59. f6+ {[%emt 0:00:00]} 1-0

[Event "British Championship 2024"]
[Site "Hull"]
[Date "2024.07.31"]
[Round "5.16"]
[White "Pein, Malcolm"]
[Black "Wells, Peter K"]
[Result "1-0"]
[Annotator "RC"]
[ECO "D45"]
[WhiteElo "2274"]
[BlackElo "2354"]
[PlyCount "57"]
[EventDate "2024.07.31"]
[EventCountry "GBR"]
[SourceTitle "playchess.com"]
[Source "ChessBase"]
[SourceQuality "1"]
[TimeControl "40/5400+30:1800+30"]

1. d4 {[%emt 0:00:05]} Nf6 {[%emt 0:01:00]} 2. Nf3 {[%emt 0:01:10]} d5 {[%emt 0:00:19]} 3. c4 {[%emt 0:00:25]} e6 {[%emt 0:00:07]} 4. Nc3 {[%emt 0:00:52]} c6 {[%emt 0:00:18]} 5. e3 {[%emt 0:02:32]} Nbd7 {[%emt 0:00:14]} 6. Qc2 {[%emt 0:01:08]} Bd6 {[%emt 0:00:34]} 7. b3 {[%emt 0:05:30]} O-O {[%emt 0:02:27]} 8. Bb2 {[%emt 0:00:04]} e5 {[%emt 0:07:28]} 9. dxe5 {[%emt 0:05:10]} Nxe5 {[%emt 0:00:13]} 10. O-O-O {[%emt 0:17:28]} Qe7 11. cxd5 {[%emt 0:16:56]} cxd5 {[%emt 0:24:37]} 12. Nxd5 {[%emt 0:00:30]} Nxd5 {[%emt 0:00:30]} 13. Rxd5 {[%emt 0:45:10]} Be6 {[%emt 0:59:13]} 14. Rxd6 {[%emt 0:00:30]} Rac8 {[%emt 0:00:30]} 15. Bxe5 {[%emt 0:00:00]} Rxc2+ {[%emt 0:00:00]} 16. Kxc2 {[%emt 0:00:00]} Rc8+ {[%emt 0:00:00]} 17. Kb2 {[%emt 0:00:00]} f6 {[%emt 0:00:00]} 18. Bf4 {[%emt 0:02:00]} Qc7 {[%emt 0:00:00]} 19. Bc4 {[%emt 0:00:00]} Bxc4 {[%emt 0:00:00]} 20. Rc1 {[%emt 0:00:00]} b5 {[%emt 0:00:00]} 21. Rd2 {[%emt 0:00:00]} Qb7 {[%emt 0:00:00]} 22. bxc4 {[%emt 0:00:00]} bxc4+ {[%emt 0:00:00]} 23. Ka1 {[%emt 0:00:00]} g5 {[%emt 0:00:00]} 24. Bg3 {[%emt 0:00:00]} c3 {[%emt 0:02:52]} 25. Rdc2 {[%emt 0:00:00]} Qb4 {[%emt 0:01:05]} 26. Nd4 {[%emt 0:00:00]} Rc4 {[%emt 0:00:52]} 27. f3 {[%emt 0:00:00]} Qe7 {[%emt 0:01:05]} 28. Rxc3 {[%emt 0:00:00]} Rxc3 {[%emt 0:00:33]} 29. Rxc3 {[%emt 0:00:00]} 1-0

[Event "British Championship 2024"]
[Site "Hull"]
[Date "2024.07.31"]
[Round "5.17"]
[White "Kanyamarala, Trisha"]
[Black "Czopor, Maciej"]
[Result "0-1"]
[Annotator "RC"]
[ECO "E74"]
[WhiteElo "2219"]
[BlackElo "2361"]
[PlyCount "140"]
[EventDate "2024.07.31"]
[EventCountry "GBR"]
[SourceTitle "playchess.com"]
[Source "ChessBase"]
[SourceQuality "1"]
[TimeControl "40/5400+30:1800+30"]

1. d4 {[%emt 0:00:11]} Nf6 {[%emt 0:00:14]} 2. c4 {[%emt 0:00:15]} g6 {[%emt 0:00:05]} 3. Nc3 {[%emt 0:00:27]} Bg7 {[%emt 0:00:04]} 4. e4 {[%emt 0:00:11]} d6 {[%emt 0:00:03]} 5. Be2 {[%emt 0:00:12]} O-O {[%emt 0:00:06]} 6. Bg5 {[%emt 0:00:30]} c5 {[%emt 0:02:08]} 7. d5 {[%emt 0:00:58]} h6 {[%emt 0:00:14]} 8. Be3 {[%emt 0:01:25]} e6 {[%emt 0:01:25]} 9. dxe6 {[%emt 0:02:39]} Bxe6 {[%emt 0:00:49]} 10. Qd2 {[%emt 0:03:33]} Kh7 {[%emt 0:03:37]} 11. h3 {[%emt 0:08:33]} Nc6 {[%emt 0:03:47]} 12. Nf3 {[%emt 0:13:30]} Qa5 {[%emt 0:13:03]} 13. O-O {[%emt 0:04:39]} Rad8 {[%emt 0:04:55]} 14. Qc2 {[%emt 0:12:00]} Rfe8 {[%emt 0:05:05]} 15. a3 {[%emt 0:03:37]} Nd7 {[%emt 0:08:47]} 16. Rfd1 {[%emt 0:12:56]} Nde5 {[%emt 0:01:04]} 17. Nxe5 {[%emt 0:05:27]} Bxe5 {[%emt 0:01:55]} 18. Nd5 {[%emt 0:05:15]} Bxd5 {[%emt 0:00:27]} 19. exd5 {[%emt 0:02:05]} Nd4 {[%emt 0:00:28]} 20. Bxd4 {[%emt 0:01:57]} Bxd4 {[%emt 0:00:23]} 21. h4 {[%emt 0:01:29]} Rd7 {[%emt 0:04:21]} 22. h5 {[%emt 0:01:14]} Qd8 {[%emt 0:00:29]} 23. Bg4 {[%emt 0:02:35]} Rc7 {[%emt 0:01:24]} 24. hxg6+ {[%emt 0:03:37]} fxg6 {[%emt 0:00:05]} 25. Be6 {[%emt 0:00:32]} Qh4 {[%emt 0:01:05]} 26. Rd3 {[%emt 0:00:31]} Rf8 {[%emt 0:00:44]} 27. Rf1 {[%emt 0:02:17]} Qe4 {[%emt 0:01:22]} 28. Rd2 {[%emt 0:02:54]} Qf4 {[%emt 0:02:06]} 29. Rd3 {[%emt 0:00:11]} Qe5 {[%emt 0:00:10]} 30. Rd2 {[%emt 0:01:45]} Re7 {[%emt 0:01:30]} 31. Re2 {[%emt 0:00:29]} Qf6 {[%emt 0:00:56]} 32. Rd1 {[%emt 0:01:57]} Ree8 {[%emt 0:01:25]} 33. Rd3 {[%emt 0:00:25]} Qg7 {[%emt 0:00:58]} 34. g3 {[%emt 0:01:57]} Rf6 {[%emt 0:01:13]} 35. Kg2 {[%emt 0:00:24]} Ref8 {[%emt 0:00:09]} 36. f4 {[%emt 0:01:31]} h5 {[%emt 0:00:05]} 37. Rd1 {[%emt 0:00:16]} Qc7 {[%emt 0:01:37]} 38. Rh1 {[%emt 0:00:17]} Kg7 {[%emt 0:00:05]} 39. Rh2 {[%emt 0:03:58]} a6 {[%emt 0:00:17]} 40. Rd2 {[%emt 0:00:27]} Rxe6 {[%emt 0:10:30]} 41. dxe6 {[%emt 0:05:23]} Qc6+ {[%emt 0:00:04]} 42. Kh3 {[%emt 0:09:36]} Rxf4 {[%emt 0:00:47]} 43. Qd1 {[%emt 0:01:20]} Rf5 {[%emt 0:21:00]} 44. Qh1 {[%emt 0:05:55]} Qxh1 {[%emt 0:00:59]} 45. Rxh1 {[%emt 0:00:05]} Re5 {[%emt 0:00:02]} 46. Rhh2 {[%emt 0:01:37]} Rxe6 {[%emt 0:00:56]} 47. Rhe2 {[%emt 0:00:15]} Be5 {[%emt 0:00:12]} 48. b4 {[%emt 0:01:55]} b6 {[%emt 0:00:35]} 49. g4 {[%emt 0:02:13]} hxg4+ {[%emt 0:02:40]} 50. Kxg4 {[%emt 0:00:07]} Re7 {[%emt 0:00:05]} 51. bxc5 {[%emt 0:02:37]} bxc5 {[%emt 0:00:14]} 52. Rb2 {[%emt 0:00:20]} Rf7 {[%emt 0:00:04]} 53. Rb6 {[%emt 0:00:27]} Rf4+ {[%emt 0:00:04]} 54. Kg5 {[%emt 0:00:52]} Rf5+ {[%emt 0:00:03]} 55. Kg4 {[%emt 0:00:09]} Kf6 {[%emt 0:00:05]} 56. Re4 {[%emt 0:03:06]} Rg5+ {[%emt 0:00:05]} 57. Kf3 {[%emt 0:02:07]} Rg3+ {[%emt 0:00:03]} 58. Ke2 {[%emt 0:00:06]} Rxa3 {[%emt 0:00:07]} 59. Re3 {[%emt 0:00:16]} Ra2+ {[%emt 0:00:13]} 60. Kf3 {[%emt 0:00:05]} a5 {[%emt 0:01:23]} 61. Ke4 {[%emt 0:00:35]} Ke6 {[%emt 0:01:03]} 62. Ra6 {[%emt 0:00:22]} Rc2 {[%emt 0:00:49]} 63. Rxa5 {[%emt 0:01:50]} Rxc4+ {[%emt 0:00:05]} 64. Kf3 {[%emt 0:00:07]} g5 {[%emt 0:00:34]} 65. Re4 {[%emt 0:00:25]} Rc3+ {[%emt 0:00:08]} 66. Kg2 {[%emt 0:00:25]} Kf5 {[%emt 0:00:19]} 67. Raa4 {[%emt 0:00:17]} Rc2+ {[%emt 0:01:06]} 68. Kf3 {[%emt 0:00:19]} d5 {[%emt 0:00:37]} 69. Rg4 {[%emt 0:00:12]} c4 {[%emt 0:01:58]} 70. Rg1 {[%emt 0:00:16]} g4+ {[%emt 0:00:07]} 0-1

[Event "British Championship 2024"]
[Site "Hull"]
[Date "2024.07.31"]
[Round "5.18"]
[White "Derakhshani, Borna"]
[Black "Lewis, Andrew P"]
[Result "1-0"]
[Annotator "RC"]
[ECO "B51"]
[WhiteElo "2355"]
[BlackElo "2272"]
[PlyCount "87"]
[EventDate "2024.07.31"]
[EventCountry "GBR"]
[SourceTitle "playchess.com"]
[Source "ChessBase"]
[SourceQuality "1"]
[TimeControl "40/5400+30:1800+30"]

1. e4 {[%emt 0:01:48]} c5 {[%emt 0:00:12]} 2. Nf3 {[%emt 0:00:09]} Nc6 {[%emt 0:00:09]} 3. Bb5 {[%emt 0:00:08]} d6 {[%emt 0:00:53]} 4. O-O {[%emt 0:00:08]} Bd7 {[%emt 0:00:24]} 5. Re1 {[%emt 0:00:13]} a6 {[%emt 0:00:58]} 6. Bf1 {[%emt 0:00:06]} Nf6 {[%emt 0:07:35]} 7. c3 {[%emt 0:00:18]} Bg4 {[%emt 0:01:09]} 8. h3 {[%emt 0:00:06]} Bxf3 {[%emt 0:02:11]} 9. Qxf3 {[%emt 0:00:06]} e6 {[%emt 0:00:44]} 10. d3 {[%emt 0:01:48]} Be7 {[%emt 0:02:12]} 11. Nd2 {[%emt 0:01:36]} O-O {[%emt 0:01:51]} 12. Qe2 {[%emt 0:00:11]} d5 {[%emt 0:04:46]} 13. e5 {[%emt 0:00:34]} Nd7 {[%emt 0:00:45]} 14. Nf3 {[%emt 0:00:40]} b5 {[%emt 0:01:02]} 15. d4 {[%emt 0:00:31]} c4 {[%emt 0:04:27]} 16. Qe3 {[%emt 0:07:57]} b4 {[%emt 0:05:44]} 17. Be2 {[%emt 0:01:36]} bxc3 {[%emt 0:14:16]} 18. bxc3 {[%emt 0:00:08]} Qa5 {[%emt 0:00:17]} 19. a4 {[%emt 0:27:21]} Rfb8 {[%emt 0:00:23]} 20. Bd1 {[%emt 0:01:41]} Qd8 {[%emt 0:00:17]} 21. Nh2 {[%emt 0:06:05]} Na5 {[%emt 0:01:31]} 22. Qg3 {[%emt 0:00:09]} Nf8 {[%emt 0:10:22]} 23. Ra2 {[%emt 0:06:50]} Nb3 {[%emt 0:00:53]} 24. Bc2 {[%emt 0:03:27]} Ng6 {[%emt 0:02:03]} 25. Ng4 {[%emt 0:05:35]} Rb7 {[%emt 0:10:23]} 26. Rf1 {[%emt 0:01:11]} Nxc1 {[%emt 0:03:14]} 27. Rxc1 {[%emt 0:00:01]} Bh4 {[%emt 0:02:43]} 28. Qf3 {[%emt 0:00:20]} Bg5 {[%emt 0:00:16]} 29. Re1 {[%emt 0:05:26]} Qa5 {[%emt 0:09:04]} 30. Re2 {[%emt 0:02:54]} Nf4 {[%emt 0:01:08]} 31. Re1 {[%emt 0:00:00]} Nd3 {[%emt 0:02:50]} 32. Bxd3 {[%emt 0:01:54]} cxd3 {[%emt 0:00:04]} 33. Ra3 {[%emt 0:01:00]} Be7 {[%emt 0:03:37]} 34. Ra2 {[%emt 0:00:32]} Qxc3 {[%emt 0:01:05]} 35. Rd1 {[%emt 0:00:00]} Rb3 {[%emt 0:02:02]} 36. Qe3 {[%emt 0:00:21]} Ba3 {[%emt 0:03:05]} 37. h4 {[%emt 0:05:13]} Rc8 {[%emt 0:01:14]} 38. Raa1 {[%emt 0:00:30]} Rc4 {[%emt 0:01:07]} 39. Qg5 {[%emt 0:00:08]} h6 {[%emt 0:01:56]} 40. Nxh6+ {[%emt 0:11:09]} Kh7 {[%emt 0:00:10]} 41. Nxf7 {[%emt 0:30:38]} Qxd4 {[%emt 0:10:59]} 42. Qh5+ {[%emt 0:00:00]} Kg8 {[%emt 0:00:11]} 43. Ng5 {[%emt 0:00:00]} Qf4 {[%emt 0:00:37]} 44. Qh7+ {[%emt 0:00:00]} 1-0

[Event "British Championship 2024"]
[Site "Hull"]
[Date "2024.07.31"]
[Round "5.19"]
[White "Rathbone-Jones, Ifan"]
[Black "Trent, Lawrence"]
[Result "0-1"]
[Annotator "TA"]
[ECO "A46"]
[WhiteElo "2014"]
[BlackElo "2416"]
[PlyCount "116"]
[EventDate "2024.07.31"]
[EventCountry "GBR"]
[SourceTitle "playchess.com"]
[Source "ChessBase"]
[SourceQuality "1"]
[TimeControl "40/5400+30:1800+30"]

{[%evp 9,116,-16,0,-17,-12,-39,-31,-27,-27,-29,0,-35,-37,-38,-24,-27,-25,-24,-29,-28,-28,-37,-38,-34,-29,-34,-27,-25,-25,-33,-22,-46,-50,-59,-27,-28,-39,-28,-28,-27,-37,-66,-60,-69,-48,-55,-38,-41,-47,-47,-37,-47,-45,-51,-60,-94,-92,-127,-115,-127,-127,-127,-127,-135,-127,-176,-175,-196,-189,-654,-590,-728,-661,-852,-797,-854,-854,-839,-825,-704,-766,-861,-861,-864,-854,-863,-810,-617,0,-950,-950,-869,-854,-893,-827,-906,-904,-823,-821,-777,-733,-29977,-4137,-29980,-29977,-29982,-29982,-29989,-29990]} 1. d4 {[%emt 0:00:03]} Nf6 {[%emt 0:00:01]} 2. Nf3 {[%emt 0:00:24]} e6 {[%emt 0:00:24]} 3. Bf4 {[%emt 0:00:50]} Be7 {[%emt 0:01:46]} 4. Nbd2 {[%emt 0:00:30]} Nh5 {[%emt 0:01:02]} 5. Bg3 {[%emt 0:00:24]} d6 {[%emt 0:00:36]} 6. e3 {[%emt 0:04:31]} O-O {[%emt 0:00:06]} 7. Ng1 {[%emt 0:03:47]} g6 {[%emt 0:00:41]} 8. Be2 {[%emt 0:00:08] Black is slightly better.} Nxg3 {[%emt 0:00:44]} 9. hxg3 {[%emt 0:00:07]} c5 {[%emt 0:00:19]} 10. Ngf3 {[%emt 0:01:54]} Nd7 {[%emt 0:01:58]} 11. c3 {[%emt 0:00:53]} cxd4 {[%emt 0:02:07]} 12. exd4 {[%emt 0:06:11]} Re8 {[%emt 0:03:47]} 13. O-O {[%emt 0:03:09]} Nf6 {[%emt 0:01:31]} 14. Bb5 {[%emt 0:01:40]} Bd7 {[%emt 0:01:35]} 15. Qa4 {[%emt 0:03:14][%cal Od2e4]} a6 {[%emt 0:00:06]} 16. Bxd7 {[%emt 0:00:12]} Qxd7 {[%emt 0:00:04]} 17. Qxd7 {[%emt 0:00:08]} Nxd7 {[%emt 0:00:01]} 18. a4 {[%emt 0:00:34]} b5 {[%emt 0:01:29]} 19. axb5 {[%emt 0:00:08]} axb5 {[%emt 0:00:01]} 20. b3 {[%emt 0:24:52]} Nb6 {[%emt 0:03:18]} 21. c4 {[%emt 0:02:00]} bxc4 {[%emt 0:00:16]} 22. bxc4 {[%emt 0:01:17]} Rxa1 {[%emt 0:00:22]} 23. Rxa1 {[%emt 0:00:08]} Rc8 {[%emt 0:00:02]} 24. Rc1 $1 {[%emt 0:06:30]} f5 {[%emt 0:00:32]} 25. Ne1 {[%emt 0:06:26]} Bf6 {[%emt 0:02:38]} 26. Nef3 {[%emt 0:07:37]} g5 {[%emt 0:02:32] aiming for ...g4.} 27. c5 {[%emt 0:03:12]} g4 {[%emt 0:02:39]} 28. Re1 {[%emt 0:00:09]} Nd5 {[%emt 0:00:11]} 29. Rxe6 $1 {[%emt 0:05:35]} dxc5 {[%emt 0:01:29]} 30. Rd6 {[%emt 0:01:12]} Rd8 {[%emt 0:03:37]} 31. Rxd8+ {[%emt 0:00:32]} Bxd8 $15 {[%emt 0:00:02][%mdl 4096] Endgame. KBN-KNN} 32. Ne5 {[%emt 0:08:40] Black converts the advantage convincingly.} cxd4 {[%emt 0:00:02]} 33. Nd3 {[%emt 0:00:08]} Nc3 {[%emt 0:01:18]} 34. Nb3 {[%emt 0:00:55]} Bf6 {[%emt 0:00:02]} 35. Kf1 {[%emt 0:01:56] [#]} Kf7 $1 {[%emt 0:00:01]} 36. f3 {[%emt 0:02:47]} Ke6 {[%emt 0:00:40]} 37. Nf4+ {[%emt 0:02:11]} (37. Nb4 $17) 37... Kd6 $19 {[%emt 0:00:01]} 38. Ke1 {[%emt 0:01:31]} Be5 {[%emt 0:02:11]} 39. fxg4 $2 {[%emt 0:00:42]} (39. Nh5) 39... fxg4 {[%emt 0:00:14]} 40. Kd2 {[%emt 0:02:29]} Ne4+ {[%emt 0:01:58]} 41. Ke1 {[%emt 0:04:34]} Nxg3 {[%emt 0:00:58]} 42. Nd3 {[%emt 0:00:06]} Nf5 {[%emt 0:00:29]} 43. Nd2 {[%emt 0:00:36]} Kd5 {[%emt 0:00:11]} 44. Nb4+ {[%emt 0:00:16]} Ke6 {[%emt 0:00:44]} 45. Ne4 {[%emt 0:01:06]} Ne3 {[%emt 0:01:14][%cal Oe6f5] [#] ...Kf5! is the strong threat.} 46. Kf2 {[%emt 0:02:09]} Kf5 {[%emt 0:00:04]} 47. Nd2 {[%emt 0:00:27]} Nd1+ {[%emt 0:00:49]} 48. Ke2 {[%emt 0:01:56]} Ne3 {[%emt 0:00:30]} (48... Nb2 $142 49. Nb3 h5) 49. Kf2 {[%emt 0:00:19]} h5 {[%emt 0:01:20]} 50. Nc6 {[%emt 0:02:13]} Bf6 {[%emt 0:00:15]} 51. Nb3 {[%emt 0:00:31]} Ke4 {[%emt 0:00:29]} 52. Nb4 {[%emt 0:00:37]} h4 {[%emt 0:01:31]} 53. Nd2+ {[%emt 0:00:40]} Kf5 {[%emt 0:00:01]} 54. Nd3 {[%emt 0:01:02]} Be7 {[%emt 0:01:19]} 55. Ne1 {[%emt 0:03:11]} Bb4 {[%emt 0:00:16]} 56. Nef3 {[%emt 0:00:14]} Bxd2 {[%emt 0:01:59] Black mates.} 57. Nxd4+ {[%emt 0:04:45]} Ke4 {[%emt 0:00:12]} 58. Ne2 {[%emt 0:04:33]} Nf5 {[%emt 1:34:46] Weighted Error Value: White=0.37/Black=0.04 (flawless) .  Mistake:       	White=2     	---        Inaccurate:     	White=5     	Black=2      OK:         	White=8     	Black=13     Best:        	White=2     	---        Strong:       	White=2     	Black=1} 0-1

[Event "British Championship 2024"]
[Site "Hull"]
[Date "2024.07.31"]
[Round "5.20"]
[White "Ledger, Dave J"]
[Black "Merry, Alan B"]
[Result "0-1"]
[Annotator "TA"]
[ECO "B12"]
[WhiteElo "2201"]
[BlackElo "2429"]
[PlyCount "42"]
[EventDate "2024.07.31"]
[EventCountry "GBR"]
[SourceTitle "playchess.com"]
[Source "ChessBase"]
[SourceQuality "1"]
[TimeControl "40/5400+30:1800+30"]

{[%evp 14,42,18,1,8,0,0,0,0,-31,-41,-48,-62,-300,-273,-304,-284,-272,-293,-316,-319,-383,-376,-385,-374,-662,-619,-664,-647,-812,-814]} 1. e4 {[%emt 0:00:06]} c6 {[%emt 0:00:03]} 2. d4 {[%emt 0:00:29]} d5 {[%emt 0:00:05]} 3. e5 {[%emt 0:00:03]} Bf5 {[%emt 0:00:04]} 4. Nc3 {[%emt 0:00:48]} e6 {[%emt 0:00:05]} 5. g4 {[%emt 0:00:04]} Bg6 {[%emt 0:00:04]} 6. Nge2 {[%emt 0:00:24]} Nd7 {[%emt 0:00:04]} 7. h4 {[%emt 0:01:30]} h6 {[%emt 0:00:24]} 8. Nf4 {[%emt 0:03:24]} Bh7 {[%emt 0:00:16]} 9. Bd3 {[%emt 0:05:41]} Bxd3 {[%emt 0:01:54]} 10. Qxd3 {[%emt 0:00:39]} Ne7 {[%emt 0:02:24] The position is equal.} 11. Bd2 {[%emt 0:05:18]} c5 {[%emt 0:07:17]} 12. Nb5 {[%emt 0:06:21][%cal Rb5d6] [#]} Nc6 {[%emt 0:01:47] White must now prevent ...a6.} 13. Nxe6 $2 {[%emt 0:33:10]} fxe6 $19 {[%emt 0:03:37]} 14. Qg6+ {[%emt 0:00:04]} Ke7 {[%emt 0:00:09]} 15. f4 {[%emt 0:01:02] And now Nd6 would win.} Qe8 {[%emt 0:03:41]} ({But not} 15... cxd4 16. Nxd4 Nc5 17. Nxc6+ bxc6 18. b4 $19 (18. f5 $2 Qe8 $19)) 16. Qd3 {[%emt 0:10:27]} Kd8 {[%emt 0:05:38]} 17. c4 {[%emt 0:03:00]} dxc4 {[%emt 0:04:00]} 18. Qe4 {[%emt 0:07:40]} a6 {[%emt 0:01:54]} 19. Nd6 {[%emt 0:00:59] [#]} (19. Na3) 19... Bxd6 {[%emt 0:00:08] Black is clearly winning.} 20. exd6 {[%emt 0:00:03]} cxd4 {[%emt 0:00:39] Hoping for ...Nc5.} 21. Rc1 {[%emt 0:00:50]} Nc5 {[%emt 0:01:33] White did not feel at home in the position after the opening.   Weighted Error Value: White=0.78/Black=0.00 (flawless) .  Loses game:     	White=1     	---        Mistake:       	White=1     	---        Inaccurate:     	White=1     	---        OK:         	White=3     	Black=6      Best:        	---       	Black=3} 0-1

[Event "British Championship 2024"]
[Site "Hull"]
[Date "2024.07.31"]
[Round "5.21"]
[White "Davies, Nigel R"]
[Black "Sivanandan, Bodhana"]
[Result "1/2-1/2"]
[Annotator "RC"]
[ECO "D10"]
[WhiteElo "2325"]
[BlackElo "2110"]
[PlyCount "110"]
[EventDate "2024.07.31"]
[EventCountry "GBR"]
[SourceTitle "playchess.com"]
[Source "ChessBase"]
[SourceQuality "1"]
[TimeControl "40/5400+30:1800+30"]

1. c4 {[%emt 0:00:24]} c6 {[%emt 0:00:32]} 2. d4 {[%emt 0:02:41]} d5 {[%emt 0:00:36]} 3. cxd5 {[%emt 0:00:18]} cxd5 {[%emt 0:00:33]} 4. Nc3 {[%emt 0:00:11]} Nf6 {[%emt 0:01:04]} 5. Bf4 {[%emt 0:00:13]} Nc6 {[%emt 0:01:17]} 6. e3 {[%emt 0:00:13]} a6 {[%emt 0:00:39]} 7. Bd3 {[%emt 0:00:27]} Bg4 {[%emt 0:01:55]} 8. Nge2 {[%emt 0:00:33]} e6 {[%emt 0:04:06]} 9. O-O {[%emt 0:01:04]} Bd6 {[%emt 0:01:51]} 10. Bxd6 {[%emt 0:17:29]} Qxd6 {[%emt 0:00:19]} 11. f3 {[%emt 0:03:04]} Bh5 {[%emt 0:02:14]} 12. Nf4 {[%emt 0:00:14]} Bg6 {[%emt 0:01:48]} 13. Nxg6 {[%emt 0:00:13]} hxg6 {[%emt 0:00:46]} 14. f4 {[%emt 0:00:09]} Qe7 {[%emt 0:05:33]} 15. Rc1 {[%emt 0:01:15]} Nd7 {[%emt 0:05:26]} 16. g3 {[%emt 0:15:10]} f5 {[%emt 0:12:58]} 17. h4 {[%emt 0:00:09]} Rc8 {[%emt 0:02:49]} 18. Kg2 {[%emt 0:03:52]} Nf6 {[%emt 0:07:20]} 19. Qd2 {[%emt 0:01:34]} Kf7 {[%emt 0:04:17]} 20. Rfd1 {[%emt 0:05:34]} Rc7 {[%emt 0:04:14]} 21. Na4 {[%emt 0:06:05]} Nh5 {[%emt 0:05:20]} 22. Rh1 {[%emt 0:01:35]} Rhc8 {[%emt 0:03:30]} 23. Nb6 {[%emt 0:03:32]} Rh8 {[%emt 0:01:27]} 24. a3 {[%emt 0:00:41]} Qd6 {[%emt 0:02:51]} 25. Qc3 {[%emt 0:03:44]} Qd8 {[%emt 0:03:01]} 26. Na4 {[%emt 0:06:13]} Qe7 {[%emt 0:03:04]} 27. Nc5 {[%emt 0:01:35]} Nb8 {[%emt 0:02:11]} 28. Qd2 {[%emt 0:01:58]} Rhc8 {[%emt 0:01:59]} 29. b4 {[%emt 0:01:51]} Qd8 {[%emt 0:02:38]} 30. a4 {[%emt 0:02:41]} Nd7 {[%emt 0:01:15]} 31. a5 {[%emt 0:02:23]} Ndf6 {[%emt 0:01:01]} 32. Rc2 {[%emt 0:00:39]} Ne8 {[%emt 0:01:46]} 33. b5 {[%emt 0:02:38]} axb5 {[%emt 0:01:03]} 34. Bxb5 {[%emt 0:00:07]} Nd6 {[%emt 0:00:55]} 35. Bd3 {[%emt 0:00:30]} Nf6 {[%emt 0:01:51]} 36. Rhc1 {[%emt 0:05:37]} Nfe4 {[%emt 0:07:45]} 37. Qb4 {[%emt 0:00:39]} Qe7 {[%emt 0:00:32]} 38. Kh3 {[%emt 0:04:33]} Nxc5 {[%emt 0:00:57]} 39. Rxc5 {[%emt 0:00:44]} Ne8 {[%emt 0:01:54]} 40. Qb6 {[%emt 0:02:46]} Qd8 {[%emt 0:01:21]} 41. Bb5 {[%emt 0:32:13]} Rxc5 {[%emt 0:09:49]} 42. dxc5 {[%emt 0:00:00]} Qxb6 {[%emt 0:09:01]} 43. axb6 {[%emt 0:00:00]} Ke7 {[%emt 0:00:34]} 44. g4 {[%emt 0:00:00]} Nf6 {[%emt 0:02:47]} 45. Ba6 {[%emt 0:00:00]} Nd7 {[%emt 0:05:33]} 46. Bxb7 {[%emt 0:00:09]} Rxc5 {[%emt 0:00:22]} 47. Rxc5 {[%emt 0:00:07]} Nxc5 {[%emt 0:00:12]} 48. Bc6 {[%emt 0:00:42]} Kd8 {[%emt 0:05:47]} 49. h5 {[%emt 0:01:09]} fxg4+ {[%emt 0:02:30]} 50. Kxg4 {[%emt 0:00:07]} gxh5+ {[%emt 0:00:09]} 51. Kxh5 {[%emt 0:00:06]} Nb3 {[%emt 0:00:16]} 52. b7 {[%emt 0:04:49]} Kc7 {[%emt 0:00:07]} 53. Bd7 {[%emt 0:00:07]} d4 {[%emt 0:00:11]} 54. exd4 {[%emt 0:01:28]} Nxd4 {[%emt 0:00:08]} 55. Kg6 {[%emt 0:00:27]} Ne2 {[%emt 0:00:19]} 1/2-1/2